bitfinex-derivatives/quotes_BTCF0:USTF0_20250630
["timestamp","ask_amount","ask_price","bid_price","bid_amount"]
[1751259081929,0.65226224,108490.0,108480.0,0.1474426]
[1751259096956,0.0368606,108480.0,108450.0,0.41614276]
[1751259097249,0.55100304,108460.0,108450.0,0.6405506]
[1751259098854,0.55100304,108460.0,108450.0,0.6425506]
[1751259099555,0.55300304,108460.0,108450.0,0.6415506]
[1751259100454,0.55500304,108460.0,108450.0,0.6405506]
[1751259101146,0.55500304,108460.0,108450.0,0.5775506]
[1751259101348,0.1474834,108450.0,108440.0,0.10436359]
[1751259101647,1.23677664,108450.0,108440.0,0.25325669]
[1751259101849,1.06801002,108450.0,108440.0,0.25325669]
[1751259104356,1.26977664,108450.0,108440.0,0.00368949]
[1751259104656,1.30187664,108450.0,108440.0,0.00368949]
[1751259104959,1.30187664,108450.0,108440.0,0.15118659]
[1751259110361,0.8983434,108450.0,108440.0,0.15118659]
[1751259110559,0.41435002,108450.0,108440.0,0.15118659]
[1751259110751,0.34925002,108450.0,108440.0,0.21248659]
[1751259110951,1.03561002,108450.0,108440.0,0.21248659]
[1751259111259,1.23737664,108450.0,108440.0,0.21248659]
[1751259111957,1.03600285,108450.0,108440.0,0.21248659]
[1751259112160,1.2381623,108450.0,108440.0,0.21248659]
[1751259116662,1.2685623,108450.0,108440.0,0.21248659]
[1751259121469,0.8642434,108450.0,108440.0,0.21248659]
[1751259121767,1.03600285,108450.0,108440.0,0.21248659]
[1751259122466,1.2381623,108450.0,108440.0,0.21248659]
[1751259123060,1.03600285,108450.0,108440.0,0.21248659]
[1751259124668,1.2381623,108450.0,108440.0,0.21248659]
[1751259125367,1.2381623,108450.0,108440.0,0.24568659]
[1751259126567,1.2705623,108450.0,108440.0,0.24568659]
[1751259131474,1.06840285,108450.0,108440.0,0.24568659]
[1751259131868,1.2705623,108450.0,108440.0,0.24568659]
[1751259133880,1.2705753,108450.0,108440.0,0.24568659]
[1751259134872,1.6313753,108450.0,108440.0,0.24568659]
[1751259135068,1.6313753,108450.0,108440.0,0.15118659]
[1751259135280,1.6943753,108450.0,108440.0,0.15118659]
[1751259137183,1.6943753,108450.0,108440.0,0.15118729]
[1751259146493,1.6953753,108450.0,108440.0,0.15118729]
[1751259147094,1.6953753,108450.0,108440.0,0.24528729]
[1751259150499,1.6635753,108450.0,108440.0,0.24528729]
[1751259153898,0.8672434,108450.0,108440.0,0.24528729]
[1751259154196,1.03676935,108450.0,108440.0,0.80825324]
[1751259154803,1.03676935,108450.0,108440.0,0.60608729]
[1751259157706,0.47832935,108450.0,108440.0,0.80825324]
[1751259157904,0.20216595,108450.0,108440.0,0.80825324]
[1751259158111,1.14712419,108460.0,108450.0,0.1474842]
[1751259158298,1.34929014,108460.0,108450.0,0.80465015]
[1751259158502,1.16498344,108460.0,108450.0,0.6024842]
[1751259158702,1.0914119,108460.0,108450.0,0.6024842]
[1751259158905,0.88924595,108460.0,108450.0,0.6024842]
[1751259159098,1.0914119,108460.0,108450.0,0.80465015]
[1751259159308,1.0934119,108460.0,108450.0,0.80465015]
[1751259159510,0.20616595,108460.0,108450.0,0.80465015]
[1751259159710,0.89316595,108460.0,108450.0,0.80465015]
[1751259160116,0.691,108460.0,108450.0,0.80465015]
[1751259160303,0.004,108460.0,108450.0,0.82008447]
[1751259160502,0.27573749,108480.0,108470.0,0.147457]
[1751259160819,0.96293749,108480.0,108470.0,0.71042295]
[1751259161016,0.88948595,108480.0,108470.0,0.77612295]
[1751259161515,1.03692935,108480.0,108470.0,0.77612295]
[1751259161704,1.04092935,108480.0,108470.0,0.77612295]
[1751259161905,1.04692935,108480.0,108470.0,0.77612295]
[1751259162507,1.2490953,108480.0,108470.0,0.77612295]
[1751259163819,1.04677407,108480.0,108470.0,0.573957]
[1751259168220,1.04625407,108480.0,108470.0,0.573957]
[1751259170528,1.04625407,108480.0,108470.0,0.604957]
[1751259176930,1.14015407,108480.0,108470.0,0.572457]
[1751259178430,1.14015407,108480.0,108470.0,0.571707]
[1751259181628,1.14015407,108480.0,108470.0,0.603707]
[1751259185840,1.34219548,108480.0,108470.0,0.603707]
[1751259190440,0.9381434,108480.0,108470.0,0.603707]
[1751259190631,1.34219548,108480.0,108470.0,0.603707]
[1751259191337,1.34219548,108480.0,108470.0,0.80573304]
[1751259191535,1.31049548,108480.0,108470.0,0.80573304]
[1751259196141,1.31049548,108480.0,108470.0,0.603707]
[1751259218063,1.31049548,108480.0,108470.0,0.242907]
[1751259218257,1.31049548,108480.0,108470.0,0.603707]
[1751259219660,1.31049548,108480.0,108470.0,0.242907]
[1751259219858,1.31049548,108480.0,108470.0,0.603707]
[1751259220969,1.31049548,108480.0,108470.0,0.242907]
[1751259223963,1.31049548,108480.0,108470.0,0.179907]
[1751259224167,1.34129548,108480.0,108470.0,0.179907]
[1751259235276,1.24829548,108480.0,108470.0,0.146707]
[1751259236077,1.24829548,108480.0,108470.0,0.179507]
[1751259236078,1.28039548,108480.0,108470.0,0.179507]
[1751259236878,1.34369548,108480.0,108470.0,0.179507]
[1751259242382,0.9396434,108480.0,108470.0,0.179507]
[1751259242679,1.34369548,108480.0,108470.0,0.179507]
[1751259273806,0.9396434,108480.0,108470.0,0.179507]
[1751259274105,1.34369548,108480.0,108470.0,0.179507]
[1751259285221,1.33969548,108480.0,108470.0,0.179507]
[1751259285413,1.33569548,108480.0,108470.0,0.179507]
[1751259285711,1.33869548,108480.0,108470.0,0.179507]
[1751259301230,1.69949548,108480.0,108470.0,0.146707]
[1751259301430,0.1474701,108470.0,108460.0,0.19500227]
[1751259301625,0.71839372,108470.0,108460.0,0.16250227]
[1751259301930,1.07919372,108470.0,108460.0,0.16250227]
[1751259302331,1.07919372,108470.0,108460.0,0.1474701]
[1751259302720,1.08019372,108470.0,108460.0,0.1474701]
[1751259303131,1.08119372,108470.0,108460.0,0.1474701]
[1751259305236,1.00762218,108470.0,108460.0,0.1474701]
[1751259306141,1.00762218,108470.0,108460.0,0.1353701]
[1751259307536,0.6035701,108470.0,108460.0,0.1353701]
[1751259307727,1.00762218,108470.0,108460.0,0.1353701]
[1751259314035,0.1474838,108460.0,108450.0,0.35007034]
[1751259314241,1.62973588,108460.0,108450.0,0.31827034]
[1751259314542,1.69363588,108460.0,108450.0,0.2906041]
[1751259315335,1.69363588,108460.0,108450.0,0.2916041]
[1751259315740,1.69363588,108460.0,108450.0,0.2591041]
[1751259321340,1.62973588,108460.0,108450.0,0.2591041]
[1751259321642,1.69153588,108460.0,108450.0,0.2591041]
[1751259322843,1.69153588,108460.0,108450.0,0.2900041]
[1751259325542,1.69153588,108460.0,108450.0,0.2162584]
[1751259326742,1.89356192,108460.0,108450.0,0.2162584]
[1751259326944,1.69153588,108460.0,108450.0,0.2162584]
[1751259334444,0.1474973,108450.0,108440.0,0.29054739]
[1751259334646,1.00474938,108450.0,108440.0,0.29054739]
[1751259335947,1.00474938,108450.0,108440.0,0.29354739]
[1751259336240,1.00474938,108450.0,108440.0,0.26154739]
[1751259338144,1.00474938,108450.0,108440.0,0.19207009]
[1751259339946,1.10474938,108450.0,108440.0,0.00768949]
[1751259340148,1.2040026,108450.0,108440.0,0.00768949]
[1751259340347,1.2032526,108450.0,108440.0,0.00768949]
[1751259343150,0.1475111,108440.0,108430.0,0.00092221]
[1751259343351,1.86414922,108440.0,108430.0,0.00092221]
[1751259343649,1.89614922,108440.0,108430.0,0.00092221]
[1751259344239,1.89614922,108440.0,108430.0,0.00292221]
[1751259344441,1.89614922,108440.0,108430.0,0.15044691]
[1751259344852,1.89614922,108440.0,108430.0,0.00292221]
[1751259345352,1.89614922,108440.0,108430.0,0.00492221]
[1751259345753,1.89614922,108440.0,108430.0,0.15244691]
[1751259345948,1.89614922,108440.0,108430.0,0.00492221]
[1751259346155,0.1475519,108410.0,108400.0,0.22217067]
[1751259346447,0.74726274,108420.0,108410.0,0.1475519]
[1751259346654,1.43266274,108420.0,108410.0,0.16196891]
[1751259346843,1.46336274,108420.0,108410.0,0.19406891]
[1751259347045,1.46336274,108420.0,108410.0,0.22616891]
[1751259347451,1.47260743,108420.0,108410.0,0.22616891]
[1751259347650,1.67463347,108420.0,108410.0,0.2117519]
[1751259348043,0.98923347,108420.0,108410.0,0.2117519]
[1751259348249,1.67463347,108420.0,108410.0,0.2117519]
[1751259348953,0.99223347,108420.0,108410.0,0.2117519]
[1751259349143,1.67767347,108420.0,108410.0,0.2117519]
[1751259350056,1.75328459,108420.0,108410.0,0.2117519]
[1751259350555,1.72258459,108420.0,108410.0,0.2117519]
[1751259350757,1.72258459,108420.0,108410.0,0.2427519]
[1751259351854,1.92461063,108420.0,108410.0,0.2427519]
[1751259352355,1.95601063,108420.0,108410.0,0.2427519]
[1751259354559,1.34993251,108420.0,108410.0,0.2427519]
[1751259354758,1.95601063,108420.0,108410.0,0.2427519]
[1751259356155,1.72434459,108420.0,108410.0,0.2427519]
[1751259356556,1.03714459,108420.0,108410.0,0.2427519]
[1751259356756,1.72430459,108420.0,108410.0,0.2427519]
[1751259358863,1.00025719,108420.0,108410.0,0.2427519]
[1751259359063,0.41788185,108420.0,108410.0,0.44477794]
[1751259359264,0.97704185,108420.0,108410.0,0.44477794]
[1751259359562,1.17906789,108420.0,108410.0,0.44477794]
[1751259359961,1.32660619,108420.0,108410.0,0.2427519]
[1751259383194,1.35930619,108420.0,108410.0,0.2427519]
[1751259390100,1.42090619,108420.0,108410.0,0.2427519]
[1751259412727,1.78170619,108420.0,108410.0,0.2427519]
[1751259420533,1.78170619,108420.0,108410.0,0.2106519]
[1751259422337,1.78170619,108420.0,108410.0,0.1796519]
[1751259428449,1.85527773,108420.0,108410.0,0.1796519]
[1751259430449,1.78170619,108420.0,108410.0,0.1796519]
[1751259431942,1.42090619,108420.0,108410.0,0.1796519]
[1751259432146,1.78170619,108420.0,108410.0,0.1796519]
[1751259438547,1.78170619,108420.0,108410.0,0.19380557]
[1751259440242,1.78170619,108420.0,108410.0,0.1796519]
[1751259444646,0.1475522,108410.0,108400.0,0.15345039]
[1751259444954,0.55234428,108410.0,108400.0,0.28747636]
[1751259445246,0.64634428,108410.0,108400.0,0.28747636]
[1751259445853,0.64634428,108410.0,108400.0,0.28847636]
[1751259446452,0.64634428,108410.0,108400.0,0.27432072]
[1751259447152,0.64634428,108410.0,108400.0,0.27532072]
[1751259448256,0.64634428,108410.0,108400.0,0.2895084]
[1751259451956,0.64560428,108410.0,108400.0,0.2895084]
[1751259453859,0.64560428,108410.0,108400.0,0.2526171]
[1751259454058,0.64560428,108410.0,108400.0,0.23770317]
[1751259454259,0.64560428,108410.0,108400.0,0.22351549]
[1751259456263,0.64560428,108410.0,108400.0,0.2377775]
[1751259460264,0.64560428,108410.0,108400.0,0.22351549]
[1751259461767,0.64560428,108410.0,108400.0,0.23781367]
[1751259462364,1.00640428,108410.0,108400.0,0.20092307]
[1751259462563,1.06155122,108410.0,108400.0,0.20092307]
[1751259464863,1.06155122,108410.0,108400.0,0.20018307]
[1751259465672,1.06155122,108410.0,108400.0,0.16385208]
[1751259469675,1.00640428,108410.0,108400.0,0.1495539]
[1751259476375,0.91240428,108410.0,108400.0,0.1495539]
[1751259476678,0.91240428,108410.0,108400.0,0.2429539]
[1751259478278,0.96755231,108410.0,108400.0,0.2429539]
[1751259486790,0.96755231,108410.0,108400.0,0.25736653]
[1751259490893,1.09555231,108410.0,108400.0,0.25736653]
[1751259492792,1.04040428,108410.0,108400.0,0.2429539]
[1751259495192,0.91240428,108410.0,108400.0,0.2429539]
[1751259495391,1.59788428,108410.0,108400.0,0.2429539]
[1751259496088,1.1938322,108410.0,108400.0,0.2429539]
[1751259496294,1.59788428,108410.0,108400.0,0.2429539]
[1751259497698,0.98597582,108410.0,108400.0,0.2429539]
[1751259497893,1.67145582,108410.0,108400.0,0.2429539]
[1751259498496,0.98597582,108410.0,108400.0,0.2429539]
[1751259498794,1.67145582,108410.0,108400.0,0.2429539]
[1751259499096,0.98597582,108410.0,108400.0,0.2429539]
[1751259499298,1.70275582,108410.0,108400.0,0.2429539]
[1751259499797,1.62918428,108410.0,108400.0,0.25737469]
[1751259500797,1.62918428,108410.0,108400.0,0.22567469]
[1751259501101,1.69438428,108410.0,108400.0,0.22567469]
[1751259501893,1.2903322,108410.0,108400.0,0.22567469]
[1751259502098,1.69438428,108410.0,108400.0,0.22567469]
[1751259505996,1.2903322,108410.0,108400.0,0.22567469]
[1751259506200,1.69438428,108410.0,108400.0,0.22567469]
[1751259506398,1.69438428,108410.0,108400.0,0.16397469]
[1751259512203,1.76795582,108410.0,108400.0,0.1495539]
[1751259512404,1.69438428,108410.0,108400.0,0.1495539]
[1751259512603,1.69438428,108410.0,108400.0,0.16397472]
[1751259518217,1.74957063,108410.0,108400.0,0.16397472]
[1751259518510,1.69438428,108410.0,108400.0,0.16397472]
[1751259525519,1.69438428,108410.0,108400.0,0.19417472]
[1751259527623,1.76795582,108410.0,108400.0,0.19417472]
[1751259528318,1.69438428,108410.0,108400.0,0.19417472]
[1751259529527,1.69438428,108410.0,108400.0,0.19418742]
[1751259531911,1.76795582,108410.0,108400.0,0.1797666]
[1751259532116,1.76795582,108410.0,108400.0,0.2415666]
[1751259533130,1.69438428,108410.0,108400.0,0.2415666]
[1751259533924,1.76795582,108410.0,108400.0,0.2415666]
[1751259541821,1.69438428,108410.0,108400.0,0.16398744]
[1751259544132,0.1475666,108400.0,108390.0,0.32197147]
[1751259544323,1.20022247,108400.0,108390.0,0.32172324]
[1751259544522,0.99819643,108400.0,108390.0,0.32172324]
[1751259544820,1.19948247,108400.0,108390.0,0.32172324]
[1751259545229,1.19948247,108400.0,108390.0,0.32372324]
[1751259545824,0.99745643,108400.0,108390.0,0.32372324]
[1751259547428,0.99745643,108400.0,108390.0,0.32572324]
[1751259549628,0.56280435,108400.0,108390.0,0.32572324]
[1751259549833,1.65769643,108400.0,108390.0,0.32572324]
[1751259550335,1.29689643,108400.0,108390.0,0.32572324]
[1751259558735,1.29689643,108400.0,108390.0,0.34007841]
[1751259566136,1.29689643,108400.0,108390.0,0.33930841]
[1751259569645,1.29689643,108400.0,108390.0,0.35372951]
[1751259569837,1.29649643,108400.0,108390.0,0.35372951]
[1751259570038,1.29649643,108400.0,108390.0,0.33930841]
[1751259573849,1.29645643,108400.0,108390.0,0.33930841]
[1751259574141,1.29645643,108400.0,108390.0,0.30670841]
[1751259574346,0.63715643,108400.0,108390.0,0.32112952]
[1751259574542,0.25720379,108400.0,108390.0,0.55645556]
[1751259574846,0.1844453,108410.0,108400.0,0.1475666]
[1751259575047,0.38622311,108410.0,108400.0,0.6032666]
[1751259575249,1.07782311,108410.0,108400.0,0.6032666]
[1751259575942,0.51586311,108410.0,108400.0,0.6032666]
[1751259576146,1.07782311,108410.0,108400.0,0.6032666]
[1751259576944,1.07782311,108410.0,108400.0,0.6042666]
[1751259577638,1.17480311,108410.0,108400.0,0.2101666]
[1751259580350,1.17480311,108410.0,108400.0,0.2244258]
[1751259583258,1.37682915,108410.0,108400.0,0.2244258]
[1751259585458,1.37626915,108410.0,108400.0,0.2244258]
[1751259585654,1.37626915,108410.0,108400.0,0.2550258]
[1751259585852,1.17424311,108410.0,108400.0,0.2550258]
[1751259586859,1.17424311,108410.0,108400.0,0.2407666]
[1751259590558,1.24781465,108410.0,108400.0,0.2407666]
[1751259590765,1.17424311,108410.0,108400.0,0.2407666]
[1751259591156,1.17424311,108410.0,108400.0,0.44279264]
[1751259591157,0.52459465,108410.0,108400.0,0.44279264]
[1751259591356,0.61327689,108420.0,108410.0,0.147553]
[1751259591562,1.50602293,108420.0,108410.0,0.147553]
[1751259591756,1.53872293,108420.0,108410.0,0.147553]
[1751259592255,1.85615139,108420.0,108410.0,0.16171376]
[1751259594065,1.85815139,108420.0,108410.0,0.16171376]
[1751259596266,1.16743139,108420.0,108410.0,0.16171376]
[1751259596465,1.85795139,108420.0,108410.0,0.16171376]
[1751259600971,1.93152293,108420.0,108410.0,0.147553]
[1751259604966,1.85795139,108420.0,108410.0,0.147553]
[1751259608273,1.93152293,108420.0,108410.0,0.147553]
[1751259612072,1.24100293,108420.0,108410.0,0.147553]
[1751259612277,1.93064293,108420.0,108410.0,0.178653]
[1751259615178,1.93064293,108420.0,108410.0,0.211453]
[1751259617281,1.24100293,108420.0,108410.0,0.211453]
[1751259617580,1.93064293,108420.0,108410.0,0.211453]
[1751259617779,1.93064293,108420.0,108410.0,0.178653]
[1751259617780,1.85707139,108420.0,108410.0,0.178653]
[1751259621084,1.82557139,108420.0,108410.0,0.178653]
[1751259621286,1.82557139,108420.0,108410.0,0.209853]
[1751259622089,1.13593139,108420.0,108410.0,0.209853]
[1751259622385,1.82533139,108420.0,108410.0,0.209853]
[1751259622787,1.82533139,108420.0,108410.0,0.22398483]
[1751259622987,1.82533139,108420.0,108410.0,0.25538483]
[1751259623287,1.89890293,108420.0,108410.0,0.241253]
[1751259625091,1.89890293,108420.0,108410.0,0.209853]
[1751259625389,1.85623139,108420.0,108410.0,0.16168512]
[1751259628492,1.85623139,108420.0,108410.0,0.147553]
[1751259628493,1.92980293,108420.0,108410.0,0.147553]
[1751259629688,1.92903293,108420.0,108410.0,0.147553]
[1751259631891,1.56823293,108420.0,108410.0,0.147553]
[1751259632195,1.92903293,108420.0,108410.0,0.147553]
[1751259638096,1.56823293,108420.0,108410.0,0.147553]
[1751259638296,1.92903293,108420.0,108410.0,0.147553]
[1751259647706,1.92903293,108420.0,108410.0,0.146803]
[1751259649406,1.85546139,108420.0,108410.0,0.146803]
[1751259650205,1.92902059,108420.0,108410.0,0.146803]
[1751259651605,1.85546139,108420.0,108410.0,0.146803]
[1751259651999,0.147553,108410.0,108400.0,0.2540388]
[1751259652195,1.40446389,108410.0,108400.0,0.2540388]
[1751259652906,1.40446389,108410.0,108400.0,0.2171477]
[1751259653204,1.40446389,108410.0,108400.0,0.2181477]
[1751259654403,1.33090508,108410.0,108400.0,0.2181477]
[1751259656297,1.33090508,108410.0,108400.0,0.23221516]
[1751259657708,1.76526389,108410.0,108400.0,0.16263406]
[1751259657904,1.76526389,108410.0,108400.0,0.1485666]
[1751259658303,1.69170508,108410.0,108400.0,0.1485666]
[1751259658998,1.76526389,108410.0,108400.0,0.1485666]
[1751259659199,1.36121181,108410.0,108400.0,0.001]
[1751259659402,1.76526389,108410.0,108400.0,0.001]
[1751259660102,1.69170508,108410.0,108400.0,0.001]
[1751259660606,1.76526389,108410.0,108400.0,0.001]
[1751259661204,1.74617812,108410.0,108390.0,0.00318444]
[1751259661412,1.83562462,108400.0,108390.0,0.15051631]
[1751259661606,1.69659858,108400.0,108390.0,0.15051631]
[1751259661910,1.2925465,108400.0,108390.0,0.15051631]
[1751259662102,1.69659858,108400.0,108390.0,0.15051631]
[1751259663106,1.69659858,108400.0,108390.0,0.18191631]
[1751259663306,1.69659858,108400.0,108390.0,0.18591631]
[1751259663604,1.69659858,108400.0,108390.0,0.24881631]
[1751259664001,1.70267858,108400.0,108390.0,0.24881631]
[1751259668614,0.8441665,108400.0,108390.0,0.45084235]
[1751259668809,1.24821858,108400.0,108390.0,0.45084235]
[1751259669109,1.24821858,108400.0,108390.0,0.24881631]
[1751259669507,0.8441665,108400.0,108390.0,0.24881631]
[1751259669709,1.24821858,108400.0,108390.0,0.24881631]
[1751259669908,0.55161858,108400.0,108390.0,0.24881631]
[1751259670108,1.24821858,108400.0,108390.0,0.24881631]
[1751259671016,0.8441665,108400.0,108390.0,0.24881631]
[1751259671218,1.24821858,108400.0,108390.0,0.24881631]
[1751259671819,0.89882604,108400.0,108390.0,0.81164235]
[1751259672118,1.04639244,108400.0,108390.0,0.81164235]
[1751259672512,0.8443664,108400.0,108390.0,0.81164235]
[1751259672712,1.04639244,108400.0,108390.0,0.81164235]
[1751259673910,1.24829848,108400.0,108390.0,0.81164235]
[1751259674721,1.04627244,108400.0,108390.0,0.81164235]
[1751259676113,1.04627244,108400.0,108390.0,0.60961631]
[1751259676318,1.04627244,108400.0,108390.0,0.81164235]
[1751259676516,0.8442464,108400.0,108390.0,0.81164235]
[1751259676716,1.04627244,108400.0,108390.0,0.81164235]
[1751259678523,0.8442464,108400.0,108390.0,0.81164235]
[1751259678818,1.04627244,108400.0,108390.0,0.81164235]
[1751259679019,1.24829848,108400.0,108390.0,0.81164235]
[1751259681320,0.8442464,108400.0,108390.0,0.81164235]
[1751259681521,1.04627244,108400.0,108390.0,0.81164235]
[1751259681719,1.04627244,108400.0,108390.0,0.60961631]
[1751259681921,1.04627244,108400.0,108390.0,0.81164235]
[1751259682725,1.04627244,108400.0,108390.0,0.60961631]
[1751259682922,1.24829848,108400.0,108390.0,0.60961631]
[1751259683122,1.24829848,108400.0,108390.0,0.81164235]
[1751259683729,1.24829848,108400.0,108390.0,0.60961631]
[1751259688127,1.24829848,108400.0,108390.0,0.24881631]
[1751259688427,1.24829848,108400.0,108390.0,0.60961631]
[1751259689321,1.24829848,108400.0,108390.0,0.24881631]
[1751259689523,1.27989848,108400.0,108390.0,0.24881631]
[1751259692228,0.71473848,108400.0,108390.0,0.24881631]
[1751259692416,1.24781848,108400.0,108390.0,0.24881631]
[1751259694429,1.24781848,108400.0,108390.0,0.45084235]
[1751259694630,1.24781848,108400.0,108390.0,0.24881631]
[1751259699737,0.8437664,108400.0,108390.0,0.24881631]
[1751259699933,1.24781848,108400.0,108390.0,0.45084235]
[1751259701838,1.24781848,108400.0,108390.0,0.24881631]
[1751259703339,0.8437664,108400.0,108390.0,0.24881631]
[1751259703535,1.24781848,108400.0,108390.0,0.24881631]
[1751259703937,0.8437664,108400.0,108390.0,0.24881631]
[1751259704138,1.24781848,108400.0,108390.0,0.24881631]
[1751259704439,1.24705848,108400.0,108390.0,0.24881631]
[1751259706939,0.38760251,108410.0,108400.0,0.1475661]
[1751259707240,0.38760251,108410.0,108400.0,0.74059214]
[1751259707241,0.58938032,108410.0,108400.0,0.74059214]
[1751259707440,1.28482032,108410.0,108400.0,0.74059214]
[1751259707641,1.08279428,108410.0,108400.0,0.74059214]
[1751259707937,1.28482032,108410.0,108400.0,0.74059214]
[1751259708145,1.28482032,108410.0,108400.0,0.74159214]
[1751259708340,1.21126151,108410.0,108400.0,0.74159214]
[1751259708735,1.21126151,108410.0,108400.0,0.5395661]
[1751259708935,0.64738151,108410.0,108400.0,0.5395661]
[1751259709140,1.21122151,108410.0,108400.0,0.5395661]
[1751259722555,1.21047151,108410.0,108400.0,0.5395661]
[1751259724463,1.21047151,108410.0,108400.0,0.1787661]
[1751259724960,1.21047151,108410.0,108400.0,0.5395661]
[1751259725159,0.23141722,108420.0,108410.0,0.1475525]
[1751259725353,1.5094795,108420.0,108410.0,0.1475525]
[1751259725553,1.5747795,108420.0,108410.0,0.1475525]
[1751259726061,0.8804195,108420.0,108410.0,0.1475525]
[1751259726266,1.5758195,108420.0,108410.0,0.1475525]
[1751259726960,0.8814195,108420.0,108410.0,0.1475525]
[1751259727159,1.5758595,108420.0,108410.0,0.1475525]
[1751259728556,1.5778595,108420.0,108410.0,0.1475525]
[1751259729561,1.5778595,108420.0,108410.0,0.1787525]
[1751259731069,1.04280742,108420.0,108410.0,0.1787525]
[1751259731260,0.71020616,108420.0,108410.0,0.38077854]
[1751259731562,1.4066756,108420.0,108410.0,0.44177854]
[1751259731955,1.33311679,108420.0,108410.0,0.44177854]
[1751259732156,1.33311679,108420.0,108410.0,0.2397525]
[1751259734966,0.23462471,108420.0,108410.0,0.44177854]
[1751259735163,1.33303679,108420.0,108410.0,0.2397525]
[1751259736270,0.63867679,108420.0,108410.0,0.2397525]
[1751259736465,0.01147469,108420.0,108410.0,1.00460458]
[1751259736766,0.83886485,108430.0,108420.0,0.1475389]
[1751259736966,0.83886485,108430.0,108420.0,0.6037389]
[1751259736967,0.83812357,108430.0,108420.0,0.6037389]
[1751259737865,0.76530604,108430.0,108420.0,0.80576494]
[1751259738060,0.20802604,108430.0,108420.0,0.80576494]
[1751259738261,0.006,108430.0,108420.0,1.00779098]
[1751259738966,0.01511872,108430.0,108420.0,1.00779098]
[1751259739166,0.006,108430.0,108420.0,1.00779098]
[1751259740660,0.006,108430.0,108420.0,0.6037389]
[1751259740864,0.006,108430.0,108420.0,1.00779098]
[1751259742868,0.015412,108430.0,108420.0,1.00779098]
[1751259749270,0.21743804,108430.0,108420.0,1.00779098]
[1751259752980,0.015412,108430.0,108420.0,1.00779098]
[1751259754580,0.015412,108430.0,108420.0,1.08310649]
[1751259755982,0.21743804,108430.0,108420.0,1.08310649]
[1751259759985,0.015412,108430.0,108420.0,1.08310649]
[1751259760985,0.21743804,108430.0,108420.0,0.67905441]
[1751259761188,0.21743804,108430.0,108420.0,1.08310649]
[1751259761880,0.015412,108430.0,108420.0,1.08310649]
[1751259763088,0.21743804,108430.0,108420.0,1.08310649]
[1751259763283,0.015412,108430.0,108420.0,1.64502649]
[1751259764277,0.015412,108430.0,108420.0,1.64506649]
[1751259767189,0.015412,108430.0,108420.0,1.67263416]
[1751259770197,0.015412,108430.0,108420.0,1.70943736]
[1751259770400,0.006,108430.0,108420.0,1.70943736]
[1751259783212,0.34266114,108440.0,108430.0,0.1475253]
[1751259783510,0.34266114,108440.0,108430.0,0.77395134]
[1751259783710,0.34266114,108440.0,108430.0,0.80595134]
[1751259784220,0.34766114,108440.0,108430.0,0.80595134]
[1751259784411,0.35066114,108440.0,108430.0,0.6039253]
[1751259784709,0.38266114,108440.0,108430.0,0.80595134]
[1751259785207,0.1806351,108440.0,108430.0,0.80595134]
[1751259785603,0.44506114,108440.0,108430.0,0.77395134]
[1751259787315,0.31454114,108440.0,108430.0,0.77395134]
[1751259787515,0.64688718,108440.0,108430.0,1.1028453]
[1751259787810,0.64688718,108440.0,108430.0,1.30487134]
[1751259787811,0.44486114,108440.0,108430.0,1.30487134]
[1751259788018,0.31454114,108440.0,108430.0,1.27227134]
[1751259788214,0.1125151,108440.0,108430.0,1.27227134]
[1751259788516,0.31454114,108440.0,108430.0,1.27227134]
[1751259791020,0.31454114,108440.0,108430.0,0.71035134]
[1751259792518,0.1125151,108440.0,108430.0,0.71035134]
[1751259792718,0.31454114,108440.0,108430.0,0.71035134]
[1751259794811,0.31454114,108440.0,108430.0,0.5083253]
[1751259795015,0.31454114,108440.0,108430.0,0.71035134]
[1751259797918,0.1125151,108440.0,108430.0,0.71035134]
[1751259798119,0.31454114,108440.0,108430.0,0.71035134]
[1751259798922,0.31454114,108440.0,108430.0,0.74285134]
[1751259801326,0.31454114,108440.0,108430.0,0.5408253]
[1751259801627,0.31454114,108440.0,108430.0,0.74285134]
[1751259804818,0.31454114,108440.0,108430.0,0.77455134]
[1751259805421,0.31454114,108440.0,108430.0,0.80565134]
[1751259807626,0.31454114,108440.0,108430.0,0.6036253]
[1751259807831,0.31454114,108440.0,108430.0,0.80565134]
[1751259808223,0.28314114,108440.0,108430.0,0.80565134]
[1751259810834,0.25214114,108440.0,108430.0,0.80565134]
[1751259811332,0.22014114,108440.0,108430.0,0.80565134]
[1751259816535,0.0181151,108440.0,108430.0,0.80565134]
[1751259816840,0.22014114,108440.0,108430.0,0.80565134]
[1751259817439,0.35046114,108440.0,108430.0,0.80565134]
[1751259820338,0.1484351,108440.0,108430.0,0.80565134]
[1751259820637,0.35046114,108440.0,108430.0,0.80565134]
[1751259823136,0.1484351,108440.0,108430.0,0.80565134]
[1751259823337,0.35046114,108440.0,108430.0,0.80565134]
[1751259824746,0.22014114,108440.0,108430.0,0.80565134]
[1751259824936,0.1479551,108440.0,108430.0,0.80565134]
[1751259826638,0.1479551,108440.0,108430.0,1.16645134]
[1751259828638,0.34998114,108440.0,108430.0,1.16645134]
[1751259829235,0.1479551,108440.0,108430.0,1.16645134]
[1751259830147,0.0181151,108440.0,108430.0,1.36847738]
[1751259831844,0.0181151,108440.0,108430.0,1.39604505]
[1751259832337,0.0181151,108440.0,108430.0,1.39704505]
[1751259832338,0.0131151,108440.0,108430.0,1.39704505]
[1751259832543,0.0131151,108440.0,108430.0,1.95888505]
[1751259832736,0.0101151,108440.0,108430.0,1.95888505]
[1751259833648,0.0101151,108440.0,108430.0,1.39704505]
[1751259833947,0.0101151,108440.0,108430.0,1.95888505]
[1751259834842,0.0101151,108440.0,108430.0,1.39704505]
[1751259835044,0.0101151,108440.0,108430.0,1.95888505]
[1751259835540,0.0101151,108440.0,108430.0,1.93131738]
[1751259835745,0.001,108440.0,108430.0,1.93131738]
[1751259837551,0.001,108440.0,108430.0,1.5272653]
[1751259837749,0.001,108440.0,108430.0,1.72929134]
[1751259838552,0.001,108440.0,108430.0,1.75685901]
[1751259838948,0.001,108440.0,108430.0,1.19501901]
[1751259839149,0.001,108440.0,108430.0,1.75669901]
[1751259839353,0.01760361,108440.0,108430.0,1.19501901]
[1751259839552,0.001,108440.0,108430.0,1.75657901]
[1751259839854,0.001,108440.0,108430.0,1.19501901]
[1751259840054,0.001,108440.0,108430.0,1.75653901]
[1751259843655,0.01766424,108440.0,108430.0,1.75653901]
[1751259844150,0.21969028,108440.0,108430.0,0.99299297]
[1751259844355,0.31399028,108440.0,108430.0,1.69779134]
[1751259845158,0.31399028,108440.0,108430.0,1.73069134]
[1751259846056,0.31399028,108440.0,108430.0,1.16925134]
[1751259846254,0.31399028,108440.0,108430.0,1.73069134]
[1751259848057,0.11196424,108440.0,108430.0,1.73069134]
[1751259848257,0.31399028,108440.0,108430.0,1.73069134]
[1751259849747,0.21969028,108440.0,108430.0,1.73069134]
[1751259850859,0.25279028,108440.0,108430.0,1.73069134]
[1751259858264,0.25279028,108440.0,108430.0,1.75825901]
[1751259860063,0.05076424,108440.0,108430.0,1.75825901]